Department Family,Entity,Pay date,Expense Type(T),Expense Area(T),Supplier(T),Transaction Number, Amount ,Description
NS&I,NS&I,14/02/2024,Capital suspense account,Rainbow,IBM United Kingdom Ltd,4025466," 5,766,106.92 ",Strategic Transformation Programme delivery
NS&I,NS&I,21/02/2024,Unitary fee - Outsource partner,Commercial and Legal,Atos IT Services UK Ltd,4025610," 5,671,960.45 ",Unitary service charge - February 2024
NS&I,NS&I,14/02/2024,Demand-linked costs - Outsource partner,Delivery & Monitoring,Atos IT Services UK Ltd,4025517," 3,713,673.00 ",Demand link service charge - January 2024
NS&I,NS&I,27/02/2024,Professional services - Other,Rainbow,Sopra Steria Limited,4025639," 2,432,783.64 ",Corporate system improvements
NS&I,NS&I,14/02/2024,Unitary fee - Outsource partner,B2B Government Payment Services,Atos IT Services UK Ltd,4025498," 1,464,751.45 ",Tax-free childcare service charges - Feb 2024
NS&I,NS&I,14/02/2024,Capital suspense account,Rainbow,IBM United Kingdom Ltd,4025494," 1,118,198.46 ",Strategic Transformation Programme delivery
NS&I,NS&I,14/02/2024,Unitary fee - Outsource partner,B2B Government Payment Services,Atos IT Services UK Ltd,4025506," 721,638.14 ",Help to save service charges - February 2024
NS&I,NS&I,14/02/2024,Unitary fee - Outsource partner,B2B Government Payment Services,Atos IT Services UK Ltd,4025505," 469,160.38 ",Tax-free childcare service charges - November 2023
NS&I,NS&I,27/02/2024,Professional services - Other,Rainbow,IBM United Kingdom Ltd,4025645," 465,475.03 ",IT service charges January 2024
NS&I,NS&I,21/02/2024,Professional services - Other,Rainbow,Capgemini UK plc (SIAM Partner),4025587," 324,008.16 ",Service Integration and Management  Partner support 
NS&I,NS&I,21/02/2024,Unitary fee - Outsource partner,B2B Government Payment Services,Atos IT Services UK Ltd,4025496," 380,522.80 ",Help to buy service charges February 2024
NS&I,NS&I,14/02/2024,Unitary fee - Outsource partner,B2B Government Payment Services,Atos IT Services UK Ltd,4025507," 301,889.86 ",30 Hours service charges - February 2024
NS&I,NS&I,07/02/2024,Maintenance and running costs - Outsource partner,Rainbow,Atos IT Services UK Ltd,4025429," 294,097.00 ",Corporate system improvements
NS&I,NS&I,21/02/2024,Unitary fee - Outsource partner,B2B Government Payment Services,Atos IT Services UK Ltd,4025472," 148,328.63 ",Court Funds Office Service Charges January 2024
NS&I,NS&I,14/02/2024,Unitary fee - Outsource partner,B2B Government Payment Services,Atos IT Services UK Ltd,4025464," 146,424.72 ",Tax-free childcare service charges - December 2023
NS&I,NS&I,14/02/2024,Professional services - Other,Information & Technology,Capgemini Financial Services UK Ltd (IT Partner),4025532," 129,952.94 ",IT delivery partner support
NS&I,NS&I,27/02/2024,Consultancy services,Rainbow,PA Consulting Services Ltd,4025634," 118,486.80 ",Strategic business advice and support
NS&I,NS&I,14/02/2024,Unitary fee - Outsource partner,B2B Government Payment Services,Atos IT Services UK Ltd,4025459," 107,706.33 ",30 Hours service charges - December 2023
NS&I,NS&I,07/02/2024,Maintenance and running costs - Outsource partner,Change Delivery,Atos IT Services UK Ltd,4025431," 100,000.00 ",Programme management cost January 2024
NS&I,NS&I,07/02/2024,Maintenance and running costs - Outsource partner,Rainbow,Atos IT Services UK Ltd,4025438," 99,911.00 ",Test environment maintenance costs
NS&I,NS&I,21/02/2024,Business intelligence and analysis,Market Intelligence & Research,"Curinos International Limited, formally MAPA INTERNATIONAL LTD",4025586," 90,000.00 ",Digital insights research
NS&I,NS&I,07/02/2024,Professional services - Projects,Rainbow,Sopra Steria Limited,4025449," 63,937.65 ",B2B Transition Replanning Charges
NS&I,NS&I,27/02/2024,Direct marketing,Marketing Communications,Unlimited Group United Ltd,4025638," 55,184.38 ",Cost of marketing campaigns
NS&I,NS&I,14/02/2024,Unitary fee - Outsource partner,B2B Government Payment Services,Atos IT Services UK Ltd,4025436," 54,410.88 ",Tax-free childcare service charges - December 2023
NS&I,NS&I,07/02/2024,Professional services - Legal,Rainbow,Cabinet Office (Shared Services),4025489," 47,940.00 ",Strategic business advice and support
NS&I,NS&I,27/02/2024,Advertising and production,Marketing Communications,Manning Gottlieb OMD,4025635," 43,687.99 ", Cost of Marketing Campaigns 
NS&I,NS&I,14/02/2024,Unitary fee - Outsource partner,B2B Government Payment Services,Atos IT Services UK Ltd,4025458," 41,673.57 ",Tax-free childcare service charges - December 2023
NS&I,NS&I,21/02/2024,Business intelligence and analysis,Business Insight,CACI Ltd,4025497," 36,388.80 ","Creation of models for age, channel and savings value band"
NS&I,NS&I,14/02/2024,Professional services - Other,Complaint's Management,Financial Ombudsman Services,4025576," 36,000.00 ",Case Fee Charges February 2024
NS&I,NS&I,14/02/2024,Direct marketing,Marketing Communications,Unlimited Group United Ltd,4025540," 34,521.22 ",Cost of Marketing Campaigns
NS&I,NS&I,07/02/2024,Advertising and production,Marketing Communications,Manning Gottlieb OMD,4025389," 29,768.02 ",Cost of Marketing Campaigns
NS&I,NS&I,21/02/2024,Maintenance and running costs - Outsource partner,Information & Technology,Atos IT Services UK Ltd,4025619," 29,312.00 ",FA portal website annual renewal charge
NS&I,NS&I,07/02/2024,Advertising and production,Marketing Communications,Manning Gottlieb OMD,4025392," 28,177.13 ", Cost of Marketing Campaigns 
NS&I,NS&I,21/02/2024,Advertising and production,Marketing Communications,Manning Gottlieb OMD,4025596," 27,092.65 ",Cost of Marketing Campaigns
NS&I,NS&I,14/02/2024,Unitary fee - Outsource partner,B2B Government Payment Services,Atos IT Services UK Ltd,4025456," 26,878.28 ",Help to save service charges - December 2023
NS&I,NS&I,14/02/2024,Web hosting,B2B & Operations Assurance,Keysight Technologies UK Limited,4025558," 26,084.16 ",Independent Website Monitoring
0,0,,,,,," 24,646,132.44 ",
